{"text_format":"1","workbook":"xlsx","n_sheets":2,"sheets":["様式１","様式１ (記載例)"],"not_rendered":{"charts":0,"images":0,"macros":1,"external_links":0,"defined_names":3,"comments":0,"pivot_tables":0},"unopened":[],"bounds":{"document_bytes":16777216,"sheet_cells":100000,"rows_first":2000,"rows_last":500,"rows_between":2000,"halvings":0,"cell_chars":16384,"cell_head_chars":4096},"cells_cut":0,"cells_raw":0,"read":"whole","date_system":"1900"}

{"sheet":"様式１","index":0,"n_rows":196,"n_cols":90,"rows_kept":196,"cut":false,"hidden":false,"merged":[[2,41,2,52],[3,32,4,32],[3,33,4,33],[3,35,4,35],[3,36,4,36],[3,37,4,37],[3,38,4,38],[3,39,4,39],[3,40,4,40],[3,42,3,44],[3,45,3,49],[84,1,84,13],[107,23,107,26],[2,13,3,14],[2,11,3,11],[2,9,3,9],[15,1,15,26],[26,1,26,26],[79,2,79,20],[79,21,80,23],[80,2,80,20],[81,2,81,20],[81,21,82,23],[75,2,75,20],[75,21,76,23],[76,2,76,20],[77,2,77,20],[77,21,78,23],[78,2,78,20],[69,20,69,21],[69,22,69,26],[70,1,70,18],[12,1,12,5],[13,7,13,26],[73,2,74,20],[41,1,41,3],[41,4,41,5],[52,1,52,3],[52,4,52,5],[52,7,52,8],[52,9,52,26],[51,1,51,3],[73,21,74,23],[67,1,67,12],[67,13,67,26],[68,1,68,12],[68,13,68,26],[60,20,60,21],[60,22,60,26],[61,1,61,3],[61,4,61,5],[61,6,61,26],[65,6,65,26],[64,6,64,26],[63,6,63,26],[62,6,62,26],[65,4,65,5],[65,1,65,3],[64,4,64,5],[72,2,72,20],[72,21,72,23],[57,1,57,3],[57,4,57,5],[57,7,57,8],[57,9,57,26],[54,1,54,3],[54,4,54,5],[54,7,54,8],[54,9,54,26],[64,1,64,3],[63,4,63,5],[63,1,63,3],[62,4,62,5],[2,16,3,17],[4,4,4,11],[4,12,4,16],[4,17,4,21],[6,12,6,16],[6,17,6,21],[2,0,3,6],[2,7,3,7],[2,8,3,8],[2,10,3,10],[2,12,3,12],[2,15,3,15],[4,1,4,3],[9,19,9,26],[11,19,11,26],[7,17,7,21],[7,13,7,15],[20,18,21,20],[13,1,13,6],[12,6,12,8],[12,9,12,11],[12,12,12,26],[16,6,17,6],[20,10,21,11],[20,12,21,15],[20,16,21,17],[18,12,19,15],[16,12,17,15],[18,7,19,9],[16,7,17,9],[7,4,7,5],[8,6,8,18],[20,1,21,5],[20,6,21,6],[20,7,21,9],[18,1,19,5],[16,1,17,5],[27,1,27,3],[27,4,27,5],[27,7,27,8],[27,9,27,26],[28,7,28,8],[28,9,28,26],[22,16,23,17],[18,16,19,17],[16,16,17,17],[22,10,23,11],[18,10,19,11],[16,10,17,11],[22,18,23,20],[18,18,19,20],[16,18,17,20],[22,6,23,6],[18,6,19,6],[22,12,23,15],[22,7,23,9],[28,1,28,3],[28,4,28,5],[25,1,25,26],[22,1,23,5],[37,1,37,3],[37,4,37,5],[37,7,37,8],[37,9,37,26],[36,1,36,3],[36,4,36,5],[36,7,36,8],[36,9,36,26],[40,1,40,3],[40,4,40,5],[40,7,40,8],[40,9,40,26],[39,1,39,3],[39,4,39,5],[39,7,39,8],[39,9,39,26],[38,1,38,3],[38,4,38,5],[38,7,38,8],[38,9,38,26],[51,4,51,5],[51,7,51,8],[51,9,51,26],[59,1,59,3],[59,4,59,5],[59,7,59,8],[59,9,59,26],[56,1,56,3],[56,4,56,5],[56,7,56,8],[56,9,56,26],[55,1,55,3],[55,4,55,5],[55,7,55,8],[55,9,55,26],[58,1,58,3],[58,4,58,5],[58,7,58,8],[58,9,58,26],[35,1,35,3],[35,4,35,5],[35,7,35,8],[35,9,35,26],[34,1,34,3],[34,4,34,5],[34,7,34,8],[34,9,34,26],[33,1,33,3],[33,4,33,5],[33,7,33,8],[33,9,33,26],[29,1,29,3],[29,4,29,5],[29,7,29,8],[29,9,29,26],[32,1,32,3],[32,4,32,5],[32,7,32,8],[32,9,32,26],[31,1,31,3],[31,4,31,5],[31,7,31,8],[31,9,31,26],[30,1,30,3],[30,4,30,5],[30,7,30,8],[30,9,30,26],[43,1,43,3],[43,4,43,5],[43,7,43,8],[43,9,43,26],[95,23,95,26],[94,23,94,26],[93,23,93,26],[96,2,96,9],[94,2,94,9],[93,2,93,9],[94,13,94,20],[93,13,93,20],[94,10,94,12],[93,10,93,12],[50,7,50,8],[48,1,48,3],[48,4,48,5],[48,7,48,8],[48,9,48,26],[50,1,50,3],[50,4,50,5],[47,1,47,3],[47,4,47,5],[47,7,47,8],[50,9,50,26],[49,1,49,3],[49,4,49,5],[49,7,49,8],[49,9,49,26],[94,21,94,22],[93,21,93,22],[44,1,44,3],[44,4,44,5],[44,7,44,8],[44,9,44,26],[47,9,47,26],[46,1,46,3],[46,4,46,5],[46,7,46,8],[46,9,46,26],[45,1,45,3],[45,4,45,5],[45,7,45,8],[45,9,45,26],[53,1,53,3],[53,4,53,5],[53,7,53,8],[53,9,53,26],[95,2,95,9],[96,10,96,22],[95,21,95,22],[95,14,95,20],[95,10,95,12],[62,1,62,3],[24,1,24,5],[24,6,24,26],[2,31,2,40],[3,31,4,31],[3,34,4,34],[5,1,6,3],[5,4,6,11],[5,12,5,16],[5,17,5,21],[11,1,11,5],[9,6,10,18],[11,6,11,18],[42,1,42,3],[42,4,42,5],[42,7,42,8],[42,9,42,26],[41,7,41,8],[41,9,41,26]]}
[null,"関東地方整備局",null,null,null,null,null,null,null,null,null,null,null,null,null,null,null,null,null,null,null,null,null,null,null,null,null,null,null,null,"○",null,null,null,null,null,null,null,null,null,null,null,null,null,null,null,null,null,null,null,null,null,null,null,null,"入力チェック",null,null,null,null,null,{"$f":"IF(COUNTIF(BJ3:BJ12,\"*してください*\")>0,\"↓入力漏れ もしくは エラー があります↓\",\"\")","v":"↓入力漏れ もしくは エラー があります↓"}]
[null,null,null,null,null,null,null,null,null,null,null,null,null,null,null,null,null,null,null,null,null,null,null,null,null,null,null,null,null,null,"○"]
["履 　 歴 　 書",null,null,null,null,null,null,"令和",8,null,"年",null,"月",1,null,"日","現在",null,null,null,null,null,null,null,null,null,null,null,null,null,"○","基本情報",null,null,null,null,null,null,null,null,null,"第1次選考（応募資格審査）",null,null,null,null,null,null,null,null,null,null,null,null,"※","氏名",{"$f":"IF(E6=\"\",\"未入力\",\"OK\")","v":"未入力"},"を","入力","してください","(セル：E6)",{"$f":"IF(BE3=\"OK\",\"\",_xlfn.TEXTJOIN(\"\",TRUE,BC3:BD3,BF3:BI3))","v":"※氏名を入力してください(セル：E6)"}]
[null,null,null,null,null,null,null,null,null,null,null,null,null,null,null,null,null,null,null,null,null,null,null,null,null,null,null,null,null,null,"○","氏名","ふりがな","希望する分野1","希望する分野２","対応\n部署","性別\n","年齢","電話番号","メール","勤務先","最終学歴","応募資格①職務経験年数",null,null,"応募資格②技術系の職務経験or技術系の課程を卒業",null,null,null,null,null,"応募資格③公務員資格",null,null,"※","ふりがな",{"$f":"IF(E5=\"\",\"未入力\",\"OK\")","v":"未入力"},"を","入力","してください","(セル：E5)",{"$f":"IF(BE4=\"OK\",\"\",_xlfn.TEXTJOIN(\"\",TRUE,BC4:BD4,BF4:BI4))","v":"※ふりがなを入力してください(セル：E5)"}]
[null,"ふりがな",null,null,null,null,null,null,null,null,null,null,"性別",null,null,null,null,"希望する分野１",null,null,null,null,null,null,null,null,null,null,null,null,"○",null,null,null,null,null,null,null,null,null,null,"学校\n区分","社会人\n経験年数\n（年）","条件","審査\n結果","技術系の\n職務経験","学校名","学部","学科・専攻","審査\n結果","理由","国籍","国家\n公務員法",null,"※","希望する分野",{"$f":"IF(R6=\"\",\"未入力\",\"OK\")","v":"未入力"},"を","選択","してください","(セル：R6)","※希望する分野を選択してください(セル：R6)"]
[null,"氏名",null,null,null,null,null,null,null,null,null,null,null,null,null,null,null,null,null,null,null,null,null,null,null,null,null,{"$f":"_xlfn._xlws.FILTER(BJ1:BJ14,BJ1:BJ14<>\"\",\"\")","v":"↓入力漏れ もしくは エラー があります↓"},null,null,"○",{"$f":"E6","v":0},{"$f":"E5","v":0},{"$f":"R6","v":0},{"$f":"R8","v":"-"},{"$f":"IFERROR(_xlfn.XLOOKUP(AH6,AN8:AN14,AO8:AO14),\"\")","v":""},{"$f":"M6","v":0},{"$f":"N8","v":""},{"$f":"IF(T12<>\"\",AG13,AG11)","v":"000-000-0000"},{"$f":"G12","v":0},{"$f":"M13","v":0},{"$f":"AJ19","v":""},{"$f":"AR51","v":"0年0ヶ月"},{"$f":"AR52","v":""},{"$f":"IF(AQ8>AR8,\"○\",\"\")","v":"○"},{"$f":"IF(AS6=\"○\",\"あり\",\"\")","v":"あり"},{"$f":"AK19","v":""},{"$f":"AL19","v":""},"",{"$f":"IF(AS6=\"○\",\"○\",\"\")","v":"○"},{"$f":"IF(AX6=\"○\",\"応募資格を満足するため\",\"\")","v":"応募資格を満足するため"},{"$f":"IF(様式１!V74=\"非該当\",\"日本国\",\"\")","v":""},{"$f":"IF(COUNTIF(様式１!V76:X83,\"非該当\")=4,\"該当なし\",\"\")","v":""}]
[null,null,null,null,null,null,null,null,null,null,null,null,"※記載は任意です。未記載とすることも可能です。",null,null,null,null,"希望する分野２",null,null,null,null,null,null,null,null,null,"※氏名を入力してください(セル：E6)",null,null,"○",null,null,null,null,null,null,null,null,null,null,null,null,null,null,null,null,null,null,null,null,null,null,null,"※","年齢",{"$f":"IF(N8=\"\",\"未入力\",\"OK\")","v":"未入力"},"を","入力","してください","(セル：G9～L9)","※年齢を入力してください(セル：G9～L9)"]
[null,"生年月日",null,null,"（西暦）",null,null,"年",null,"月",null,null,"日",{"$f":"AI9","v":""},null,null,"歳","-",null,null,null,null,null,null,null,null,null,"※ふりがなを入力してください(セル：E5)",null,null,"○",null,null,null,null,null,null,null,null,"土木（河川）","企画課",null,{"$f":"LEFT(AQ6,FIND(\"年\",AQ6)-1)","v":"0"},{"$f":"_xlfn.XLOOKUP(AR6,様式１!AH19:AH22,様式１!AF19:AF22,\"\")","v":""},null,null,null,null,null,null,null,null,null,null,"※","電話番号",{"$f":"IF(T12=\"\",IF(T10=\"\",\"未入力\",IF(COUNTIF(T10,\"*-*\")>0,\"ハイフンなし\",\"OK\")),IF(COUNTIF(T12,\"*-*\")>0,\"ハイフンなし\",\"OK\"))","v":"未入力"},"を","入力","してください","(セル：T11,T13)",{"$f":"IF(BE8=\"OK\",\"\",IF(BE8=\"ハイフンなし\",\"※電話番号はハイフンをなしで入力してください\",_xlfn.TEXTJOIN(\"\",TRUE,BC8:BD8,BF8:BI8)))","v":"※電話番号を入力してください(セル：T11,T13)"}]
[null,"ふりがな",null,null,null,null,null,null,null,null,null,null,null,null,null,null,null,null,null,"電話番号（ハイフンなし）",null,null,null,null,null,null,null,"※希望する分野を選択してください(セル：R6)",null,null,"○",null,{"$f":"IFERROR(DATE(G8,I8,L8),\"\")","v":""},null,{"$f":"IFERROR(DATEDIF(AG9,TODAY(),\"Y\"),\"\")","v":""},null,null,null,null,"土木（道路）","企画課",null,null,null,null,null,null,null,null,null,null,null,null,null,"※","メール",{"$f":"IF(G12=\"\",\"未入力\",\"OK\")","v":"未入力"},"を","入力","してください","(セル：G14)","※メールを入力してください(セル：G14)"]
[null,"現住所",null,null,null,null,null,null,null,null,null,null,null,null,null,null,null,null,null,null,null,null,null,null,null,null,null,"※年齢を入力してください(セル：G9～L9)",null,null,"○",null,null,null,null,null,null,null,null,"機械（土木）","施工企画課",null,null,null,null,null,null,null,null,null,null,null,null,null,"※","勤務先",{"$f":"IF(M13=\"\",\"未入力\",\"OK\")","v":"未入力"},"を","入力","してください","(セル：M15)","※勤務先を入力してください(セル：M15)"]
[null,"〒(",null,"-",null,")",null,null,null,null,null,null,null,null,null,null,null,null,null,"携帯電話番号（ハイフンなし）",null,null,null,null,null,null,null,"※電話番号を入力してください(セル：T11,T13)",null,null,"○",null,{"$f":"TEXT(T10,\"000-000-0000\")","v":"000-000-0000"},null,null,null,null,null,null,"電気（土木）","情報通信技術課",null,null,null,null,null,null,null,null,null,null,null,null,null,"※","論文で選択した希望分野",{"$f":"IF(H14=\"\",\"未入力\",\"OK\")","v":"未入力"},"を","選択","してください","(セル：H16)","※論文で選択した希望分野を選択してください(セル：H16)"]
[null,"e-mail ｱﾄﾞﾚｽ",null,null,null,null,null,null,null,null,null,null,null,null,null,null,null,null,null,null,null,null,null,null,null,null,null,"※メールを入力してください(セル：G14)",null,null,"○",null,null,null,null,null,null,null,null,"営繕（建築）","計画課",null,null,null,null,null,null,null,null,null,null,null,null,null,"※","公務員条件",{"$f":"IF(COUNTBLANK(AG78:AG87)>0,\"未入力\",\"OK\")","v":"OK"},"を","選択","してください","(セル：V78～86)",""]
[null,"現職種",null,null,null,null,null,null,null,"会社名",null,null,null,null,null,null,null,null,null,null,null,null,null,null,null,null,null,"※勤務先を入力してください(セル：M15)",null,null,"○",null,{"$f":"TEXT(T12,\"000-0000-0000\")","v":"000-0000-0000"},null,null,null,null,null,null,"営繕（機械）","整備課（機械）",null,null,null,null,null,null,null,null,null,null,null,null,null,null,null,{"$f":"COUNTBLANK(V74:V82)","v":9},null,null,null,null,{"$f":"IF(COUNTIF(BE3:BE12,\"OK\")=10,\"　OK\",\"\")","v":""}]
[null,"論文試験で選択した希望分野",null,null,null,null,null,null,null,null,null,null,null,null,null,null,null,null,null,null,null,null,null,null,null,null,null,"※論文で選択した希望分野を選択してください(セル：H16)",null,null,"○",null,null,null,null,null,null,null,null,"営繕（電気）","整備課（電気）",null,null,null,null,null,null,null,null,null,null,null,null,null,null,null,{"$f":"COUNTIF(T12,\"-\")","v":0},null,null,null,null,{"$f":"IF(BJ13=\"　OK\",\"※PDF化せず、Excelのまま提出してください\",\"\")","v":""}]
[null,null,null,null,null,null,null,null,null,null,null,null,null,null,null,null,null,null,null,null,null,null,null,null,null,null,null,null,null,null,"○",null,null,null,null,null,null,null,null,null,null,null,null,null,null,null,null,null,null,null,null,null,null,null,null,null,{"$f":"COUNTIF(T12,\"*-*\")","v":0}]
[null,"学歴 ",null,null,null,null,null,null,null,null,null,null,null,null,null,null,null,null,null,null,null,null,null,null,null,null,null,null,null,null,"○"]
[null,null,null,null,null,null,"高校",null,null,null,"学科",null,null,null,null,null,null,null,null,null,null,"入学：",null,null,"年",null,"月",null,null,null,"○"]
[null,null,null,null,null,null,null,null,null,null,null,null,null,null,null,null,null,null,null,null,null,"卒業：",null,null,"年",null,"月",null,null,null,"○",null,null,null,null,"最終学歴","学校名","学部","学科"]
[null,null,null,null,null,null,"短大･高専\n専門学校",null,null,null,"学部",null,null,null,null,null,"学科",null,null,null,null,"入学：",null,null,"年",null,"月",null,null,null,"○",9,"高等学校","≧９年",{"$f":"IF(S17=\"\",\"\",_xlfn.XLOOKUP(S17,$AG$23:$AG$25,$AH$23:$AH$25,\"\"))","v":""},{"$f":"IF(AI22=1,AG22,IF(AI21=1,AG21,IF(AI20=1,AG20,IF(AI19=1,AG19,\"\"))))","v":""},{"$f":"_xlfn.XLOOKUP(AJ20,G17:G24,B17:B24,\"\")","v":""},{"$f":"_xlfn.XLOOKUP(AJ20,G17:G24,H17:H24,\"\")","v":""},{"$f":"_xlfn.XLOOKUP(AJ20,G17:G24,M17:M24,\"\")","v":""},null,"高校"]
[null,null,null,null,null,null,null,null,null,null,null,null,null,null,null,null,null,null,null,null,null,"卒業：",null,null,"年",null,"月",null,null,null,"○",7,"専門学校","≧７年",{"$f":"IF(S19=\"\",\"\",_xlfn.XLOOKUP(S19,$AG$23:$AG$25,$AH$23:$AH$25,\"\"))","v":""},{"$f":"_xlfn.XLOOKUP(AJ19,AG19:AG22,AO19:AO22,\"\")","v":""},null,null,null,null,"短大･高専\n専門学校"]
[null,null,null,null,null,null,"大学",null,null,null,"学部",null,null,null,null,null,"専攻",null,null,null,null,"入学：",null,null,"年",null,"月",null,null,null,"○",5,"大学","≧５年",{"$f":"IF(S21=\"\",\"\",_xlfn.XLOOKUP(S21,$AG$23:$AG$25,$AH$23:$AH$25,\"\"))","v":""},null,null,null,null,null,"大学"]
[null,null,null,null,null,null,null,null,null,null,null,null,null,null,null,null,null,null,null,null,null,"卒業：",null,null,"年",null,"月",null,null,null,"○",5,"大学院","≧５年",{"$f":"IF(S23=\"\",\"\",_xlfn.XLOOKUP(S23,$AG$23:$AG$25,$AH$23:$AH$25,\"\"))","v":""},null,null,null,null,null,"大学院"]
[null,null,null,null,null,null,"大学院",null,null,null,"学部",null,null,null,null,null,"専攻",null,null,null,null,"入学：",null,null,"年",null,"月",null,null,null,"○",null,"既卒",1]
[null,null,null,null,null,null,null,null,null,null,null,null,null,null,null,null,null,null,null,null,null,"卒業：",null,null,"年",null,"月",null,null,null,"○",null,"中退",0]
[null,"備考",null,null,null,null,null,null,null,null,null,null,null,null,null,null,null,null,null,null,null,null,null,null,null,null,null,null,null,null,"○",null,"卒業見込",1]
[null,null,null,null,null,null,null,null,null,null,null,null,null,null,null,null,null,null,null,null,null,null,null,null,null,null,null,null,null,null,"○"]
[null,"職歴",null,null,null,null,null,null,null,null,null,null,null,null,null,null,null,null,null,null,null,null,null,null,null,null,null,null,null,null,"○","対象","日付","入社","退社","属性",null,null,null,null,"リスト","入社年月","退社年月","勤務年月"]
[null,"西暦",null,null,"月",null,"状況","雇用形態",null,"会社名",null,null,null,null,null,null,null,null,null,null,null,null,null,null,null,null,null,null,null,null,{"$f":"IF(J29=\"\",\"\",\"○\")","v":""},{"$f":"_xlfn.XLOOKUP(H29,$H$122:$H$126,$I$122:$I$126,\"\")","v":""},{"$f":"IF(B29=\"\",\"\",DATE(B29,E29,1))","v":""},{"$f":"IF(AF28=\"○\",IF(G29=$AH$27,COUNTIFS($G$29:G29,$AH$27,$AF$28:AF28,\"○\"),\"\"),\"\")","v":""},{"$f":"IF(AF28=\"○\",IF(G29=$AI$27,COUNTIFS($G$29:G29,$AI$27,$AF$28:AF28,\"○\"),\"\"),\"\")","v":""},{"$f":"IF(G29=$AH$27,_xlfn.TEXTJOIN(\"\",TRUE,$AH$27,AH28),IF(G29=$AI$27,_xlfn.TEXTJOIN(\"\",TRUE,$AI$27,AI28),\"\"))","v":""},null,"会社１","入社１","退社１",{"$f":"_xlfn.XLOOKUP(AM28,$AJ$28:$AJ$59,$J$29:$J$60,\"\")","v":""},{"$f":"_xlfn.XLOOKUP(AM28,$AJ$28:$AJ$59,$AG$28:$AG$59,\"\")","v":""},{"$f":"_xlfn.XLOOKUP(AN28,$AJ$28:$AJ$59,$AG$28:$AG$59,\"\")","v":"2026-02-01"},{"$f":"IF(AO28=\"\",\"\",DATEDIF(AP28,AQ28,\"M\")+1)","v":""},null,null,null,null,null,null,null,null,null,null,null,null,null,null,null,null,null,null,null,null,null,null,null,null,null,null,null,null,null,null,null,null,null,null,null,null,null,null,null,null,null,null,null,null,null,1984]
[null,null,null,null,null,null,null,null,null,null,null,null,null,null,null,null,null,null,null,null,null,null,null,null,null,null,null,null,null,null,"","","",{"$f":"IF(AF29=\"○\",IF(G30=$AH$27,COUNTIFS($G$29:G30,$AH$27,$AF$28:AF29,\"○\"),\"\"),\"\")","v":""},{"$f":"IF(AF29=\"○\",IF(G30=$AI$27,COUNTIFS($G$29:G30,$AI$27,$AF$28:AF29,\"○\"),\"\"),\"\")","v":""},"",null,"会社２","入社２","退社２","","","",{"$f":"IF(AO29=\"\",\"\",DATEDIF(AP29,AQ29,\"M\")+1)","v":""}]
[null,null,null,null,null,null,null,null,null,null,null,null,null,null,null,null,null,null,null,null,null,null,null,null,null,null,null,null,null,null,"","","",{"$f":"IF(AF30=\"○\",IF(G31=$AH$27,COUNTIFS($G$29:G31,$AH$27,$AF$28:AF30,\"○\"),\"\"),\"\")","v":""},{"$f":"IF(AF30=\"○\",IF(G31=$AI$27,COUNTIFS($G$29:G31,$AI$27,$AF$28:AF30,\"○\"),\"\"),\"\")","v":""},"",null,"会社３","入社３","退社３","","","",""]
[null,null,null,null,null,null,null,null,null,null,null,null,null,null,null,null,null,null,null,null,null,null,null,null,null,null,null,null,null,null,"","","",{"$f":"IF(AF31=\"○\",IF(G32=$AH$27,COUNTIFS($G$29:G32,$AH$27,$AF$28:AF31,\"○\"),\"\"),\"\")","v":""},{"$f":"IF(AF31=\"○\",IF(G32=$AI$27,COUNTIFS($G$29:G32,$AI$27,$AF$28:AF31,\"○\"),\"\"),\"\")","v":""},"",null,"会社４","入社４","退社４","","","",""]
[null,null,null,null,null,null,null,null,null,null,null,null,null,null,null,null,null,null,null,null,null,null,null,null,null,null,null,null,null,null,"","","",{"$f":"IF(AF32=\"○\",IF(G33=$AH$27,COUNTIFS($G$29:G33,$AH$27,$AF$28:AF32,\"○\"),\"\"),\"\")","v":""},{"$f":"IF(AF32=\"○\",IF(G33=$AI$27,COUNTIFS($G$29:G33,$AI$27,$AF$28:AF32,\"○\"),\"\"),\"\")","v":""},"",null,"会社５","入社５","退社５","","","",""]
[null,null,null,null,null,null,null,null,null,null,null,null,null,null,null,null,null,null,null,null,null,null,null,null,null,null,null,null,null,null,"","","",{"$f":"IF(AF33=\"○\",IF(G34=$AH$27,COUNTIFS($G$29:G34,$AH$27,$AF$28:AF33,\"○\"),\"\"),\"\")","v":""},{"$f":"IF(AF33=\"○\",IF(G34=$AI$27,COUNTIFS($G$29:G34,$AI$27,$AF$28:AF33,\"○\"),\"\"),\"\")","v":""},"",null,"会社６","入社６","退社６","","","",""]
[null,null,null,null,null,null,null,null,null,null,null,null,null,null,null,null,null,null,null,null,null,null,null,null,null,null,null,null,null,null,"","","",{"$f":"IF(AF34=\"○\",IF(G35=$AH$27,COUNTIFS($G$29:G35,$AH$27,$AF$28:AF34,\"○\"),\"\"),\"\")","v":""},{"$f":"IF(AF34=\"○\",IF(G35=$AI$27,COUNTIFS($G$29:G35,$AI$27,$AF$28:AF34,\"○\"),\"\"),\"\")","v":""},"",null,"会社７","入社７","退社７","","","",""]
[null,null,null,null,null,null,null,null,null,null,null,null,null,null,null,null,null,null,null,null,null,null,null,null,null,null,null,null,null,null,"","","",{"$f":"IF(AF35=\"○\",IF(G36=$AH$27,COUNTIFS($G$29:G36,$AH$27,$AF$28:AF35,\"○\"),\"\"),\"\")","v":""},{"$f":"IF(AF35=\"○\",IF(G36=$AI$27,COUNTIFS($G$29:G36,$AI$27,$AF$28:AF35,\"○\"),\"\"),\"\")","v":""},"",null,"会社８","入社８","退社８","","","",""]
[null,null,null,null,null,null,null,null,null,null,null,null,null,null,null,null,null,null,null,null,null,null,null,null,null,null,null,null,null,null,"","","",{"$f":"IF(AF36=\"○\",IF(G37=$AH$27,COUNTIFS($G$29:G37,$AH$27,$AF$28:AF36,\"○\"),\"\"),\"\")","v":""},{"$f":"IF(AF36=\"○\",IF(G37=$AI$27,COUNTIFS($G$29:G37,$AI$27,$AF$28:AF36,\"○\"),\"\"),\"\")","v":""},"",null,"会社９","入社９","退社９","","","",""]
[null,null,null,null,null,null,null,null,null,null,null,null,null,null,null,null,null,null,null,null,null,null,null,null,null,null,null,null,null,null,"","","",{"$f":"IF(AF37=\"○\",IF(G38=$AH$27,COUNTIFS($G$29:G38,$AH$27,$AF$28:AF37,\"○\"),\"\"),\"\")","v":""},{"$f":"IF(AF37=\"○\",IF(G38=$AI$27,COUNTIFS($G$29:G38,$AI$27,$AF$28:AF37,\"○\"),\"\"),\"\")","v":""},"",null,"会社１０","入社１０","退社１０","","","",""]
[null,null,null,null,null,null,null,null,null,null,null,null,null,null,null,null,null,null,null,null,null,null,null,null,null,null,null,null,null,null,"","","",{"$f":"IF(AF38=\"○\",IF(G39=$AH$27,COUNTIFS($G$29:G39,$AH$27,$AF$28:AF38,\"○\"),\"\"),\"\")","v":""},{"$f":"IF(AF38=\"○\",IF(G39=$AI$27,COUNTIFS($G$29:G39,$AI$27,$AF$28:AF38,\"○\"),\"\"),\"\")","v":""},"",null,"会社１１","入社１１","退社１１","","","",""]
[null,null,null,null,null,null,null,null,null,null,null,null,null,null,null,null,null,null,null,null,null,null,null,null,null,null,null,null,null,null,"","","",{"$f":"IF(AF39=\"○\",IF(G40=$AH$27,COUNTIFS($G$29:G40,$AH$27,$AF$28:AF39,\"○\"),\"\"),\"\")","v":""},{"$f":"IF(AF39=\"○\",IF(G40=$AI$27,COUNTIFS($G$29:G40,$AI$27,$AF$28:AF39,\"○\"),\"\"),\"\")","v":""},"",null,"会社１２","入社１２","退社１２","","","",""]
[null,null,null,null,null,null,null,null,null,null,null,null,null,null,null,null,null,null,null,null,null,null,null,null,null,null,null,null,null,null,"","","",{"$f":"IF(AF40=\"○\",IF(G41=$AH$27,COUNTIFS($G$29:G41,$AH$27,$AF$28:AF40,\"○\"),\"\"),\"\")","v":""},{"$f":"IF(AF40=\"○\",IF(G41=$AI$27,COUNTIFS($G$29:G41,$AI$27,$AF$28:AF40,\"○\"),\"\"),\"\")","v":""},"",null,"会社１３","入社１３","退社１３","","","",""]
[null,null,null,null,null,null,null,null,null,null,null,null,null,null,null,null,null,null,null,null,null,null,null,null,null,null,null,null,null,null,"","","",{"$f":"IF(AF41=\"○\",IF(G42=$AH$27,COUNTIFS($G$29:G42,$AH$27,$AF$28:AF41,\"○\"),\"\"),\"\")","v":""},{"$f":"IF(AF41=\"○\",IF(G42=$AI$27,COUNTIFS($G$29:G42,$AI$27,$AF$28:AF41,\"○\"),\"\"),\"\")","v":""},"",null,"会社１４","入社１４","退社１４","","","",""]
[null,null,null,null,null,null,null,null,null,null,null,null,null,null,null,null,null,null,null,null,null,null,null,null,null,null,null,null,null,null,"","","",{"$f":"IF(AF42=\"○\",IF(G43=$AH$27,COUNTIFS($G$29:G43,$AH$27,$AF$28:AF42,\"○\"),\"\"),\"\")","v":""},{"$f":"IF(AF42=\"○\",IF(G43=$AI$27,COUNTIFS($G$29:G43,$AI$27,$AF$28:AF42,\"○\"),\"\"),\"\")","v":""},"",null,"会社１５","入社１５","退社１５","","","",""]
[null,null,null,null,null,null,null,null,null,null,null,null,null,null,null,null,null,null,null,null,null,null,null,null,null,null,null,null,null,null,"","","",{"$f":"IF(AF43=\"○\",IF(G44=$AH$27,COUNTIFS($G$29:G44,$AH$27,$AF$28:AF43,\"○\"),\"\"),\"\")","v":""},{"$f":"IF(AF43=\"○\",IF(G44=$AI$27,COUNTIFS($G$29:G44,$AI$27,$AF$28:AF43,\"○\"),\"\"),\"\")","v":""},"",null,"会社１６","入社１６","退社１６","","","",""]
[null,null,null,null,null,null,null,null,null,null,null,null,null,null,null,null,null,null,null,null,null,null,null,null,null,null,null,null,null,null,"","","",{"$f":"IF(AF44=\"○\",IF(G45=$AH$27,COUNTIFS($G$29:G45,$AH$27,$AF$28:AF44,\"○\"),\"\"),\"\")","v":""},{"$f":"IF(AF44=\"○\",IF(G45=$AI$27,COUNTIFS($G$29:G45,$AI$27,$AF$28:AF44,\"○\"),\"\"),\"\")","v":""},"",null,"会社１７","入社１７","退社１７","","","",""]
[null,null,null,null,null,null,null,null,null,null,null,null,null,null,null,null,null,null,null,null,null,null,null,null,null,null,null,null,null,null,"","","",{"$f":"IF(AF45=\"○\",IF(G46=$AH$27,COUNTIFS($G$29:G46,$AH$27,$AF$28:AF45,\"○\"),\"\"),\"\")","v":""},{"$f":"IF(AF45=\"○\",IF(G46=$AI$27,COUNTIFS($G$29:G46,$AI$27,$AF$28:AF45,\"○\"),\"\"),\"\")","v":""},"",null,"会社１８","入社１８","退社１８","","","",""]
[null,null,null,null,null,null,null,null,null,null,null,null,null,null,null,null,null,null,null,null,null,null,null,null,null,null,null,null,null,null,"","","",{"$f":"IF(AF46=\"○\",IF(G47=$AH$27,COUNTIFS($G$29:G47,$AH$27,$AF$28:AF46,\"○\"),\"\"),\"\")","v":""},{"$f":"IF(AF46=\"○\",IF(G47=$AI$27,COUNTIFS($G$29:G47,$AI$27,$AF$28:AF46,\"○\"),\"\"),\"\")","v":""},"",null,"会社１９","入社１９","退社１９","","","",""]
[null,null,null,null,null,null,null,null,null,null,null,null,null,null,null,null,null,null,null,null,null,null,null,null,null,null,null,null,null,null,"","","",{"$f":"IF(AF47=\"○\",IF(G48=$AH$27,COUNTIFS($G$29:G48,$AH$27,$AF$28:AF47,\"○\"),\"\"),\"\")","v":""},{"$f":"IF(AF47=\"○\",IF(G48=$AI$27,COUNTIFS($G$29:G48,$AI$27,$AF$28:AF47,\"○\"),\"\"),\"\")","v":""},"",null,"会社２０","入社２０","退社２０","","","",""]
[null,null,null,null,null,null,null,null,null,null,null,null,null,null,null,null,null,null,null,null,null,null,null,null,null,null,null,null,null,null,"","","",{"$f":"IF(AF48=\"○\",IF(G49=$AH$27,COUNTIFS($G$29:G49,$AH$27,$AF$28:AF48,\"○\"),\"\"),\"\")","v":""},{"$f":"IF(AF48=\"○\",IF(G49=$AI$27,COUNTIFS($G$29:G49,$AI$27,$AF$28:AF48,\"○\"),\"\"),\"\")","v":""},"",null,"合計",null,null,null,null,null,{"$f":"SUM(AR28:AR47)","v":0}]
[null,null,null,null,null,null,null,null,null,null,null,null,null,null,null,null,null,null,null,null,null,null,null,null,null,null,null,null,null,null,"","","",{"$f":"IF(AF49=\"○\",IF(G50=$AH$27,COUNTIFS($G$29:G50,$AH$27,$AF$28:AF49,\"○\"),\"\"),\"\")","v":""},{"$f":"IF(AF49=\"○\",IF(G50=$AI$27,COUNTIFS($G$29:G50,$AI$27,$AF$28:AF49,\"○\"),\"\"),\"\")","v":""},"",null,null,null,null,null,null,null,{"$f":"ROUNDDOWN(AR48/12,0)","v":0}]
[null,null,null,null,null,null,null,null,null,null,null,null,null,null,null,null,null,null,null,null,null,null,null,null,null,null,null,null,null,null,"","","",{"$f":"IF(AF50=\"○\",IF(G51=$AH$27,COUNTIFS($G$29:G51,$AH$27,$AF$28:AF50,\"○\"),\"\"),\"\")","v":""},{"$f":"IF(AF50=\"○\",IF(G51=$AI$27,COUNTIFS($G$29:G51,$AI$27,$AF$28:AF50,\"○\"),\"\"),\"\")","v":""},"",null,null,null,null,null,null,null,{"$f":"AR48-12*AR49","v":0}]
[null,null,null,null,null,null,null,null,null,null,null,null,null,null,null,null,null,null,null,null,null,null,null,null,null,null,null,null,null,null,"","","",{"$f":"IF(AF51=\"○\",IF(G52=$AH$27,COUNTIFS($G$29:G52,$AH$27,$AF$28:AF51,\"○\"),\"\"),\"\")","v":""},{"$f":"IF(AF51=\"○\",IF(G52=$AI$27,COUNTIFS($G$29:G52,$AI$27,$AF$28:AF51,\"○\"),\"\"),\"\")","v":""},"",null,null,null,null,null,null,null,{"$f":"AR49&\"年\"&AR50&\"ヶ月\"","v":"0年0ヶ月"}]
[null,null,null,null,null,null,null,null,null,null,null,null,null,null,null,null,null,null,null,null,null,null,null,null,null,null,null,null,null,null,"","","",{"$f":"IF(AF52=\"○\",IF(G53=$AH$27,COUNTIFS($G$29:G53,$AH$27,$AF$28:AF52,\"○\"),\"\"),\"\")","v":""},{"$f":"IF(AF52=\"○\",IF(G53=$AI$27,COUNTIFS($G$29:G53,$AI$27,$AF$28:AF52,\"○\"),\"\"),\"\")","v":""},"",null,null,null,null,null,null,null,{"$f":"_xlfn.XLOOKUP(AJ19,AG19:AG22,AH19:AH22,\"\")","v":""}]
[null,null,null,null,null,null,null,null,null,null,null,null,null,null,null,null,null,null,null,null,null,null,null,null,null,null,null,null,null,null,"","","",{"$f":"IF(AF53=\"○\",IF(G54=$AH$27,COUNTIFS($G$29:G54,$AH$27,$AF$28:AF53,\"○\"),\"\"),\"\")","v":""},{"$f":"IF(AF53=\"○\",IF(G54=$AI$27,COUNTIFS($G$29:G54,$AI$27,$AF$28:AF53,\"○\"),\"\"),\"\")","v":""},""]
[null,null,null,null,null,null,null,null,null,null,null,null,null,null,null,null,null,null,null,null,null,null,null,null,null,null,null,null,null,null,"","","",{"$f":"IF(AF54=\"○\",IF(G55=$AH$27,COUNTIFS($G$29:G55,$AH$27,$AF$28:AF54,\"○\"),\"\"),\"\")","v":""},{"$f":"IF(AF54=\"○\",IF(G55=$AI$27,COUNTIFS($G$29:G55,$AI$27,$AF$28:AF54,\"○\"),\"\"),\"\")","v":""},""]
[null,null,null,null,null,null,null,null,null,null,null,null,null,null,null,null,null,null,null,null,null,null,null,null,null,null,null,null,null,null,"","","",{"$f":"IF(AF55=\"○\",IF(G56=$AH$27,COUNTIFS($G$29:G56,$AH$27,$AF$28:AF55,\"○\"),\"\"),\"\")","v":""},{"$f":"IF(AF55=\"○\",IF(G56=$AI$27,COUNTIFS($G$29:G56,$AI$27,$AF$28:AF55,\"○\"),\"\"),\"\")","v":""},""]
[null,null,null,null,null,null,null,null,null,null,null,null,null,null,null,null,null,null,null,null,null,null,null,null,null,null,null,null,null,null,"","","",{"$f":"IF(AF56=\"○\",IF(G57=$AH$27,COUNTIFS($G$29:G57,$AH$27,$AF$28:AF56,\"○\"),\"\"),\"\")","v":""},{"$f":"IF(AF56=\"○\",IF(G57=$AI$27,COUNTIFS($G$29:G57,$AI$27,$AF$28:AF56,\"○\"),\"\"),\"\")","v":""},""]
[null,null,null,null,null,null,null,null,null,null,null,null,null,null,null,null,null,null,null,null,null,null,null,null,null,null,null,null,null,null,"","","",{"$f":"IF(AF57=\"○\",IF(G58=$AH$27,COUNTIFS($G$29:G58,$AH$27,$AF$28:AF57,\"○\"),\"\"),\"\")","v":""},{"$f":"IF(AF57=\"○\",IF(G58=$AI$27,COUNTIFS($G$29:G58,$AI$27,$AF$28:AF57,\"○\"),\"\"),\"\")","v":""},""]
[null,null,null,null,null,null,null,null,null,null,null,null,null,null,null,null,null,null,null,null,null,null,null,null,null,null,null,null,null,null,"","","",{"$f":"IF(AF58=\"○\",IF(G59=$AH$27,COUNTIFS($G$29:G59,$AH$27,$AF$28:AF58,\"○\"),\"\"),\"\")","v":""},{"$f":"IF(AF58=\"○\",IF(G59=$AI$27,COUNTIFS($G$29:G59,$AI$27,$AF$28:AF58,\"○\"),\"\"),\"\")","v":""},""]
[null,null,null,null,null,null,null,null,null,null,null,null,null,null,null,null,null,null,null,null,null,null,null,null,null,null,null,null,null,null,"○","○","2026-02-01",{"$f":"IF(AF59=\"○\",IF(G60=$AH$27,COUNTIFS($G$29:G60,$AH$27,$AF$28:AF59,\"○\"),\"\"),\"\")","v":""},{"$f":"IF(AF59=\"○\",IF(G60=$AI$27,COUNTIFS($G$29:G60,$AI$27,$AF$28:AF59,\"○\"),\"\"),\"\")","v":1},"退社1"]
[null,2026,null,null,2,null,"退社","正社員",null,"現在に至る",null,null,null,null,null,null,null,null,null,null,null,null,null,null,null,null,null,null,null,null,"○"]
[null,null,null,null,null,null,null,null,null,null,null,null,null,null,null,null,null,null,null,null,null,null,null,null,null,null,null,null,null,null,"○"]
[null,"年",null,null,"月",null,"免許・資格等",null,null,null,null,null,null,null,null,null,null,null,null,null,null,null,null,null,null,null,null,null,null,null,"○"]
[null,null,null,null,null,null,null,null,null,null,null,null,null,null,null,null,null,null,null,null,null,null,null,null,null,null,null,null,null,null,"○"]
[null,null,null,null,null,null,null,null,null,null,null,null,null,null,null,null,null,null,null,null,null,null,null,null,null,null,null,null,null,null,"○"]
[null,null,null,null,null,null,null,null,null,null,null,null,null,null,null,null,null,null,null,null,null,null,null,null,null,null,null,null,null,null,"○"]
[null,null,null,null,null,null,null,null,null,null,null,null,null,null,null,null,null,null,null,null,null,null,null,null,null,null,null,null,null,null,"○"]
[null,null,null,null,null,null,null,null,null,null,null,null,null,null,null,null,null,null,null,null,null,null,null,null,null,null,null,null,null,null,"○"]
[null,"趣味・特技など",null,null,null,null,null,null,null,null,null,null,null,"健康状態",null,null,null,null,null,null,null,null,null,null,null,null,null,null,null,null,"○"]
[null,null,null,null,null,null,null,null,null,null,null,null,null,null,null,null,null,null,null,null,null,null,null,null,null,null,null,null,null,null,"○"]
[null,null,null,null,null,null,null,null,null,null,null,null,null,null,null,null,null,null,null,null,null,null,null,null,null,null,null,null,null,null,"○"]
[null,"（以下の事項について該当・非該当のどちらかを選択して下さい）",null,null,null,null,null,null,null,null,null,null,null,null,null,null,null,null,null,null,null,null,null,null,null,null,null,null,null,null,"○"]
[null,null,null,null,null,null,null,null,null,null,null,null,null,null,null,null,null,null,null,null,null,null,null,null,null,null,null,null,null,null,"○"]
[null,null,"事　項",null,null,null,null,null,null,null,null,null,null,null,null,null,null,null,null,null,null,"選　択",null,null,null,null,null,null,null,null,"○"]
[null,null,"１．日本国籍を有しない者\n",null,null,null,null,null,null,null,null,null,null,null,null,null,null,null,null,null,null,null,null,null,null,null,null,null,null,null,"○"]
[null,null,null,null,null,null,null,null,null,null,null,null,null,null,null,null,null,null,null,null,null,null,null,null,null,null,null,null,null,null,"○"]
[null,null,"２．禁固以上の刑に処せられ、その執行を終わるまでの者又はその刑の執",null,null,null,null,null,null,null,null,null,null,null,null,null,null,null,null,null,null,null,null,null,null,null,null,null,null,null,"○"]
[null,null,"　　行猶予の期間中の者その他その執行を受けることがなくなるまでの者",null,null,null,null,null,null,null,null,null,null,null,null,null,null,null,null,null,null,null,null,null,null,null,null,null,null,null,"○"]
[null,null,"３．一般職の国家公務員として懲戒免職の処分を受け、当該処分の日から",null,null,null,null,null,null,null,null,null,null,null,null,null,null,null,null,null,null,null,null,null,null,null,null,null,null,null,"○",null,{"$f":"IF(V74<>\"\",V74,V73)","v":"選　択"}]
[null,null,"　　２年を経過しない者",null,null,null,null,null,null,null,null,null,null,null,null,null,null,null,null,null,null,null,null,null,null,null,null,null,null,null,"○",null,"00:00:00"]
[null,null,"４．日本国憲法又はその下に成立した政府を暴力で破壊することを主張す",null,null,null,null,null,null,null,null,null,null,null,null,null,null,null,null,null,null,null,null,null,null,null,null,null,null,null,"○",null,"00:00:00"]
[null,null,"　　る政党その他の団体を結成し、又はこれに加入した者",null,null,null,null,null,null,null,null,null,null,null,null,null,null,null,null,null,null,null,null,null,null,null,null,null,null,null,"○",null,"00:00:00"]
[null,null,"５．平成１１年改正前の民法の規定による準禁治産の宣告を受けている者",null,null,null,null,null,null,null,null,null,null,null,null,null,null,null,null,null,null,null,null,null,null,null,null,null,null,null,"○",null,0]
[null,null,null,"（心神耗弱を原因とするもの以外）",null,null,null,null,null,null,null,null,null,null,null,null,null,null,null,null,null,null,null,null,null,null,null,null,null,null,"○",null,0]
[null,null,null,null,null,null,null,null,null,null,null,null,null,null,null,null,null,null,null,null,null,null,null,null,null,null,null,null,null,null,"○",null,0]
[null,"履歴書記載に関する注意事項",null,null,null,null,null,null,null,null,null,null,null,null,null,null,null,null,null,null,null,null,null,null,null,null,null,null,null,null,"○",null,0]
[null,null,null,null,null,null,null,null,null,null,null,null,null,null,null,null,null,null,null,null,null,null,null,null,null,null,null,null,null,null,"○",null,0]
[null,null,"１．職歴については、アルバイト等を含み全て記載してください。",null,null,null,null,null,null,null,null,null,null,null,null,null,null,null,null,null,null,null,null,null,null,null,null,null,null,null,"○",null,0]
[null,null,null,"その際、正社員とアルバイト等の別を明記してください。",null,null,null,null,null,null,null,null,null,null,null,null,null,null,null,null,null,null,null,null,null,null,null,null,null,null,"○"]
[null,null,null,"（例：株式会社○○商事営業部営業第一課＜正社員＞）",null,null,null,null,null,null,null,null,null,null,null,null,null,null,null,null,null,null,null,null,null,null,null,null,null,null,"○"]
[null,null,"２．資格については、具体的に記載してください（例 ： ＴＯＥＩＣ 730点）。",null,null,null,null,null,null,null,null,null,null,null,null,null,null,null,null,null,null,null,null,null,null,null,null,null,null,null,"○"]
[null,null,null,null,null,null,null,null,null,null,null,null,null,null,null,null,null,null,null,null,null,null,null,null,null,null,null,null,null,null,"○"]
[null,"差し支えなければ、本選考採用を知ったきっかけを教えてください（複数回答可）",null,null,null,null,null,null,null,null,null,null,null,null,null,null,null,null,null,null,null,null,null,null,null,null,null,null,null,null,"○"]
[null,null,null,null,null,null,null,null,null,null,null,null,null,null,null,null,null,null,null,null,null,null,null,null,null,null,null,null,null,null,"○"]
[null,null,"地方整備局等HP",null,null,null,null,null,null,null,null,null,null,"国土交通本省採用HP",null,null,null,null,null,null,null,null,null,null,null,null,null,null,null,null,"○"]
[null,null,"総合職採用試験時の案内",null,null,null,null,null,null,null,null,null,null,"民間転職サービス",null,null,null,null,null,null,null,null,null,null,null,null,null,null,null,null,"○"]
[null,null,"国土交通省職員から",null,null,null,null,null,null,null,null,null,null,"┗","サービス名"]
[null,null,"その他"]
[]
[]
[]
[]
[]
[]
[]
[]
[null,"差し支えなければ、本選考採用を知ったきっかけを教えてください（複数回答可）"]
[]
[null,null,null,null,null,null,null,null,null,null,null,null,null,null,null,null,null,null,null,null,null,null,null,"(　　　　　　　　　）"]
[null,null,"地方整備局採用HP",null,null,null,null,null,null,null,"国土交通本省採用HP",null,null,null,null,null,null,null,"民間転職サービス"]
[]
[]
[null,null,null,null,null,null,null,null,null,null,null,null,null,null,null,null,null,null,null,null,null,null,null,null,null,null,")"]
[null,null,"総合職採用試験時の案内",null,null,null,null,null,null,null,"国土交通省職員からの紹介",null,null,null,null,null,null,null,"（職員名（任意）："]
[null,null,null,null,null,null,null,null,null,null,null,null,null,null,null,null,null,null,null,null,null,null,null,null,null,null,")"]
[null,null,"その他",null,null,"("]
[]
[]
[]
[]
[]
[]
[null,null,null,null,null,null,null,"正社員","○",null,"入社１","退社１",1,null,null,null,null,null,null,null,null,"・河川等又は道路の整備及び管理（土木）"]
[null,null,null,null,null,null,null,"契約社員","○",null,"入社２","退社２",2,null,null,null,null,null,null,null,null,"・河川等又は道路の整備及び管理（機械）"]
[null,null,null,null,null,null,null,"派遣社員","○",null,"入社３","退社３",3,null,null,null,null,null,null,null,null,"・河川等又は道路の整備及び管理（デジタル・電気・電子）"]
[null,null,null,null,null,null,null,"アルバイト","×",null,"入社４","退社４",4,null,null,null,null,null,null,null,null,"・官庁施設（政府関係施設）の整備等（建築）"]
[null,null,null,null,null,null,null,"その他","○",null,"入社５","退社５",5,null,null,null,null,null,null,null,null,"・官庁施設（政府関係施設）の整備等（電気設備）"]
[null,null,null,null,null,null,null,"無職",null,null,"入社６","退社６",6,null,null,null,null,null,null,null,null,"・官庁施設（政府関係施設）の整備等（機械設備）"]
[null,null,null,null,null,null,null,null,null,null,"入社７","退社７",7]
[null,null,null,null,null,null,null,null,null,null,"入社８","退社８",8]
[null,null,null,null,null,null,null,null,null,null,"入社９","退社９",9,null,null,null,null,null,null,null,null,"企画課","企画課","機械（土木）","電気（土木）","営繕（建築）","営繕（機械）","営繕（電気）"]
[null,null,null,null,null,null,null,null,null,null,"入社１０","退社１０",10,null,null,null,null,null,null,null,"-","土木（河川）","土木（道路）"]
[null,null,null,null,null,null,null,null,null,null,null,null,null,null,null,null,null,null,null,1963,1,{"$f":"_xlfn.SEQUENCE(31)","v":1},"元"]
[null,null,null,null,null,null,null,"氏名",null,null,null,null,null,null,null,null,null,null,null,1964,2,2,2]
[null,null,null,null,null,null,null,"ふりがな",null,null,null,null,null,null,null,null,null,null,null,1965,3,3,3]
[null,null,null,null,null,null,null,"希望する分野１",null,null,null,null,null,null,null,null,null,null,null,1966,4,4,4]
[null,null,null,null,null,null,null,"希望する分野２",null,null,null,null,null,null,null,null,null,null,null,1967,5,5,5]
[null,null,null,null,null,null,null,"対応部署",null,null,null,null,null,null,null,null,null,null,null,1968,6,6,6]
[null,null,null,null,null,null,null,"性別",null,null,null,null,null,null,null,null,null,null,null,1969,7,7,7]
[null,null,null,null,null,null,null,"電話番号",null,null,null,null,null,null,null,null,null,null,null,1970,8,8,8]
[null,null,null,null,null,null,null,"メール",null,null,null,null,null,null,null,null,null,null,null,1971,9,9,9]
[null,null,null,null,null,null,null,"勤務先",null,null,null,null,null,null,null,null,null,null,null,1972,10,10,10]
[null,null,null,null,null,null,null,"最終学歴",null,null,null,null,null,null,null,null,null,null,null,1973,11,11,11]
[null,null,null,null,null,null,null,"社会人経験年数",null,null,null,null,null,null,null,null,null,null,null,1974,12,12,12]
[null,null,null,null,null,null,null,"条件",null,null,null,null,null,null,null,null,null,null,null,1975,null,13,13]
[null,null,null,null,null,null,null,"技術系の職務経験",null,null,null,null,null,null,null,null,null,null,null,1976,null,14,14]
[null,null,null,null,null,null,null,"学校名",null,null,null,null,null,null,null,null,null,null,null,1977,null,15,15]
[null,null,null,null,null,null,null,null,null,null,null,null,null,null,null,null,null,null,null,1978,null,16,16]
[null,null,null,null,null,null,null,null,null,null,null,null,null,null,null,null,null,null,null,1979,null,17,17]
[null,null,null,null,null,null,null,null,null,null,null,null,null,null,null,null,null,null,null,1980,null,18,18]
[null,null,null,null,null,null,null,"学部",null,null,null,null,null,null,null,null,null,null,null,1981,null,19,19]
[null,null,null,null,null,null,null,null,null,null,null,null,null,null,null,null,null,null,null,1982,null,20,20]
[null,null,null,null,null,null,null,null,null,null,null,null,null,null,null,null,null,null,null,1983,null,21,21]
[null,null,null,null,null,null,null,null,null,null,null,null,null,null,null,null,null,null,null,1984,null,22,22]
[null,null,null,null,null,null,null,null,null,null,null,null,null,null,null,null,null,null,null,1985,null,23,23]
[null,null,null,null,null,null,null,null,null,null,null,null,null,null,null,null,null,null,null,1986,null,24,24]
[null,null,null,null,null,null,null,null,null,null,null,null,null,null,null,null,null,null,null,1987,null,25,25]
[null,null,null,null,null,null,null,null,null,null,null,null,null,null,null,null,null,null,null,1988,null,26,26]
[null,null,null,null,null,null,null,null,null,null,null,null,null,null,null,null,null,null,null,1989,null,27,27]
[null,null,null,null,null,null,null,null,null,null,null,null,null,null,null,null,null,null,null,1990,null,28,28]
[null,null,null,null,null,null,null,null,null,null,null,null,null,null,null,null,null,null,null,1991,null,29,29]
[null,null,null,null,null,null,null,null,null,null,null,null,null,null,null,null,null,null,null,1992,null,30,30]
[null,null,null,null,null,null,null,null,null,null,null,null,null,null,null,null,null,null,null,1993,null,31,31]
[null,null,null,null,null,null,null,null,null,null,null,null,null,null,null,null,null,null,null,1994,null,null,32]
[null,null,null,null,null,null,null,null,null,null,null,null,null,null,null,null,null,null,null,1995,null,null,33]
[null,null,null,null,null,null,null,null,null,null,null,null,null,null,null,null,null,null,null,1996,null,null,34]
[null,null,null,null,null,null,null,null,null,null,null,null,null,null,null,null,null,null,null,1997,null,null,35]
[null,null,null,null,null,null,null,null,null,null,null,null,null,null,null,null,null,null,null,1998,null,null,36]
[null,null,null,null,null,null,null,null,null,null,null,null,null,null,null,null,null,null,null,1999,null,null,37]
[null,null,null,null,null,null,null,null,null,null,null,null,null,null,null,null,null,null,null,2000,null,null,38]
[null,null,null,null,null,null,null,null,null,null,null,null,null,null,null,null,null,null,null,2000,null,null,39]
[null,null,null,null,null,null,null,null,null,null,null,null,null,null,null,null,null,null,null,2001,null,null,40]
[null,null,null,null,null,null,null,null,null,null,null,null,null,null,null,null,null,null,null,2002,null,null,41]
[null,null,null,null,null,null,null,null,null,null,null,null,null,null,null,null,null,null,null,2003,null,null,42]
[null,null,null,null,null,null,null,null,null,null,null,null,null,null,null,null,null,null,null,2004,null,null,43]
[null,null,null,null,null,null,null,null,null,null,null,null,null,null,null,null,null,null,null,2005,null,null,44]
[null,null,null,null,null,null,null,null,null,null,null,null,null,null,null,null,null,null,null,2006,null,null,45]
[null,null,null,null,null,null,null,null,null,null,null,null,null,null,null,null,null,null,null,2007,null,null,46]
[null,null,null,null,null,null,null,null,null,null,null,null,null,null,null,null,null,null,null,2008,null,null,47]
[null,null,null,null,null,null,null,null,null,null,null,null,null,null,null,null,null,null,null,2009,null,null,48]
[null,null,null,null,null,null,null,null,null,null,null,null,null,null,null,null,null,null,null,2010,null,null,49]
[null,null,null,null,null,null,null,null,null,null,null,null,null,null,null,null,null,null,null,2011,null,null,50]
[null,null,null,null,null,null,null,null,null,null,null,null,null,null,null,null,null,null,null,2012,null,null,51]
[null,null,null,null,null,null,null,null,null,null,null,null,null,null,null,null,null,null,null,2013,null,null,52]
[null,null,null,null,null,null,null,null,null,null,null,null,null,null,null,null,null,null,null,2014,null,null,53]
[null,null,null,null,null,null,null,null,null,null,null,null,null,null,null,null,null,null,null,2015,null,null,54]
[null,null,null,null,null,null,null,null,null,null,null,null,null,null,null,null,null,null,null,2016,null,null,55]
[null,null,null,null,null,null,null,null,null,null,null,null,null,null,null,null,null,null,null,2017,null,null,56]
[null,null,null,null,null,null,null,null,null,null,null,null,null,null,null,null,null,null,null,2018,null,null,57]
[null,null,null,null,null,null,null,null,null,null,null,null,null,null,null,null,null,null,null,2019,null,null,58]
[null,null,null,null,null,null,null,null,null,null,null,null,null,null,null,null,null,null,null,2020,null,null,59]
[null,null,null,null,null,null,null,null,null,null,null,null,null,null,null,null,null,null,null,2021,null,null,60]
[null,null,null,null,null,null,null,null,null,null,null,null,null,null,null,null,null,null,null,2022,null,null,61]
[null,null,null,null,null,null,null,null,null,null,null,null,null,null,null,null,null,null,null,2023,null,null,62]
[null,null,null,null,null,null,null,null,null,null,null,null,null,null,null,null,null,null,null,2024,null,null,63]
[null,null,null,null,null,null,null,null,null,null,null,null,null,null,null,null,null,null,null,2025]
[null,null,null,null,null,null,null,null,null,null,null,null,null,null,null,null,null,null,null,2026]

{"sheet":"様式１ (記載例)","index":1,"n_rows":195,"n_cols":27,"rows_kept":195,"cut":false,"hidden":false,"merged":[[2,12,3,12],[2,13,3,14],[2,15,3,15],[2,16,3,17],[2,0,3,6],[2,7,3,7],[2,8,3,8],[2,9,3,9],[2,10,3,10],[2,11,3,11],[4,1,4,3],[4,4,4,11],[4,12,4,16],[4,17,4,21],[5,1,6,3],[5,4,6,11],[5,12,5,16],[5,17,5,21],[6,12,6,16],[11,1,11,5],[11,6,11,18],[11,19,11,26],[12,1,12,5],[12,6,12,8],[12,9,12,11],[12,12,12,26],[6,17,6,21],[7,4,7,5],[7,13,7,15],[7,17,7,21],[8,6,8,18],[9,6,10,18],[9,19,9,26],[13,1,13,6],[13,7,13,26],[15,1,15,26],[16,1,17,5],[16,6,17,6],[16,7,17,9],[16,10,17,11],[16,12,17,15],[16,16,17,17],[16,18,17,20],[18,18,19,20],[20,1,21,5],[20,6,21,6],[20,7,21,9],[20,10,21,11],[20,12,21,15],[20,16,21,17],[20,18,21,20],[18,1,19,5],[18,6,19,6],[18,7,19,9],[18,10,19,11],[18,12,19,15],[18,16,19,17],[22,18,23,20],[25,1,25,26],[26,1,26,26],[27,1,27,3],[27,4,27,5],[27,7,27,8],[27,9,27,26],[24,1,24,5],[24,6,24,26],[22,1,23,5],[22,6,23,6],[22,7,23,9],[22,10,23,11],[22,12,23,15],[22,16,23,17],[30,1,30,3],[30,4,30,5],[30,7,30,8],[30,9,30,26],[31,1,31,3],[31,4,31,5],[31,7,31,8],[31,9,31,26],[28,1,28,3],[28,4,28,5],[28,7,28,8],[28,9,28,26],[29,1,29,3],[29,4,29,5],[29,7,29,8],[29,9,29,26],[34,1,34,3],[34,4,34,5],[34,7,34,8],[34,9,34,26],[35,1,35,3],[35,4,35,5],[35,7,35,8],[35,9,35,26],[32,1,32,3],[32,4,32,5],[32,7,32,8],[32,9,32,26],[33,1,33,3],[33,4,33,5],[33,7,33,8],[33,9,33,26],[38,1,38,3],[38,4,38,5],[38,7,38,8],[38,9,38,26],[39,1,39,3],[39,4,39,5],[39,7,39,8],[39,9,39,26],[36,1,36,3],[36,4,36,5],[36,7,36,8],[36,9,36,26],[37,1,37,3],[37,4,37,5],[37,7,37,8],[37,9,37,26],[42,1,42,3],[42,4,42,5],[42,7,42,8],[42,9,42,26],[43,1,43,3],[43,4,43,5],[43,7,43,8],[43,9,43,26],[40,1,40,3],[40,4,40,5],[40,7,40,8],[40,9,40,26],[41,1,41,3],[41,4,41,5],[41,7,41,8],[41,9,41,26],[46,1,46,3],[46,4,46,5],[46,7,46,8],[46,9,46,26],[47,1,47,3],[47,4,47,5],[47,7,47,8],[47,9,47,26],[44,1,44,3],[44,4,44,5],[44,7,44,8],[44,9,44,26],[45,1,45,3],[45,4,45,5],[45,7,45,8],[45,9,45,26],[50,1,50,3],[50,4,50,5],[50,7,50,8],[50,9,50,26],[51,1,51,3],[51,4,51,5],[51,7,51,8],[51,9,51,26],[48,1,48,3],[48,4,48,5],[48,7,48,8],[48,9,48,26],[49,1,49,3],[49,4,49,5],[49,7,49,8],[49,9,49,26],[54,1,54,3],[54,4,54,5],[54,7,54,8],[54,9,54,26],[55,1,55,3],[55,4,55,5],[55,7,55,8],[55,9,55,26],[52,1,52,3],[52,4,52,5],[52,7,52,8],[52,9,52,26],[53,1,53,3],[53,4,53,5],[53,7,53,8],[53,9,53,26],[58,1,58,3],[58,4,58,5],[58,7,58,8],[58,9,58,26],[59,1,59,3],[59,4,59,5],[59,7,59,8],[59,9,59,26],[56,1,56,3],[56,4,56,5],[56,7,56,8],[56,9,56,26],[57,1,57,3],[57,4,57,5],[57,7,57,8],[57,9,57,26],[63,1,63,3],[63,4,63,5],[63,6,63,26],[64,1,64,3],[64,4,64,5],[64,6,64,26],[60,20,60,21],[60,22,60,26],[61,1,61,3],[61,4,61,5],[61,6,61,26],[62,1,62,3],[62,4,62,5],[62,6,62,26],[69,20,69,21],[69,22,69,26],[70,1,70,18],[72,2,72,20],[72,21,72,23],[73,2,74,20],[73,21,74,23],[65,1,65,3],[65,4,65,5],[65,6,65,26],[67,1,67,12],[67,13,67,26],[68,1,68,12],[68,13,68,26],[79,2,79,20],[79,21,80,23],[80,2,80,20],[81,2,81,20],[81,21,82,23],[84,1,84,13],[75,2,75,20],[75,21,76,23],[76,2,76,20],[77,2,77,20],[77,21,78,23],[78,2,78,20],[95,2,95,9],[95,21,95,22],[95,23,95,26],[107,23,107,26],[93,2,93,9],[93,10,93,12],[93,13,93,20],[93,21,93,22],[93,23,93,26],[94,2,94,9],[94,10,94,12],[94,13,94,20],[94,21,94,22],[94,23,94,26],[95,14,95,20],[96,2,96,9],[96,10,96,22]]}
[null,null,"＜記載例＞"]
[]
["履 　 歴 　 書",null,null,null,null,null,null,"令和",8,null,"年",4,"月",1,null,"日","現在"]
[]
[null,"ふりがな",null,null,"かんとう　たろう",null,null,null,null,null,null,null,"性別",null,null,null,null,"希望する分野１"]
[null,"氏名",null,null,"関東　太郎",null,null,null,null,null,null,null,"男",null,null,null,null,"土木（道路）"]
[null,null,null,null,null,null,null,null,null,null,null,null,"※記載は任意です。未記載とすることも可能です。",null,null,null,null,"希望する分野２"]
[null,"生年月日",null,null,"（西暦）",null,1987,"年",4,"月",null,1,"日",38,null,null,"歳","-"]
[null,"ふりがな",null,null,null,null,"さいたまけんとさいたましちゅうおうくしんとしん",null,null,null,null,null,null,null,null,null,null,null,null,"電話番号（ハイフンなし）"]
[null,"現住所",null,null,null,null,"埼玉県さいたま市中央区新都心２－１",null,null,null,null,null,null,null,null,null,null,null,null,486003129]
[null,"〒(",330,"-",9724,")",null,null,null,null,null,null,null,null,null,null,null,null,null,"携帯電話番号（ハイフンなし）"]
[null,"e-mail ｱﾄﾞﾚｽ",null,null,null,null,"○○○○@○○～"]
[null,"現職種",null,null,null,null,"正社員",null,null,"会社名",null,null,"関東地方整備局"]
[null,"論文試験で選択した希望分野",null,null,null,null,null,"・河川等又は道路の整備及び管理（土木）"]
[]
[null,"学歴 "]
[null,"○○",null,null,null,null,"高校","○○",null,null,"学科",null,null,null,null,null,null,null,"既卒",null,null,"入学：","平成",15,"年",4,"月"]
[null,null,null,null,null,null,null,null,null,null,null,null,null,null,null,null,null,null,null,null,null,"卒業：","平成",18,"年",3,"月"]
[null,null,null,null,null,null,"短大･高専\n専門学校",null,null,null,"学部",null,null,null,null,null,"学科",null,null,null,null,"入学：",null,null,"年",null,"月"]
[null,null,null,null,null,null,null,null,null,null,null,null,null,null,null,null,null,null,null,null,null,"卒業：",null,null,"年",null,"月"]
[null,"○○",null,null,null,null,"大学","○○",null,null,"学部",null,"○○",null,null,null,"専攻",null,"既卒",null,null,"入学：","平成",18,"年",4,"月"]
[null,null,null,null,null,null,null,null,null,null,null,null,null,null,null,null,null,null,null,null,null,"卒業：","平成",22,"年",3,"月"]
[null,null,null,null,null,null,"大学院",null,null,null,"学部",null,null,null,null,null,"専攻",null,null,null,null,"入学：",null,null,"年",null,"月"]
[null,null,null,null,null,null,null,null,null,null,null,null,null,null,null,null,null,null,null,null,null,"卒業：",null,null,"年",null,"月"]
[null,"備考"]
[]
[null,"職歴"]
[null,"西暦",null,null,"月",null,"状況","雇用形態",null,"会社名"]
[null,2010,null,null,4,null,"入社","正社員",null,"A会社"]
[null,2013,null,null,3,null,"退社","正社員",null,"A会社"]
[null,2013,null,null,6,null,"入社","アルバイト"]
[null,2014,null,null,12,null,"退社","アルバイト"]
[null,2015,null,null,1,null,"入社","派遣社員",null,"B会社"]
[null,null,null,null,null,null,null,null,null,"○○会社へ派遣"]
[null,null,null,null,null,null,null,null,null,"○○会社へ派遣"]
[null,2020,null,null,3,null,"退社","派遣社員",null,"B会社"]
[null,2020,null,null,4,null,"入社","正社員",null,"C会社"]
[]
[]
[]
[]
[]
[]
[]
[]
[]
[]
[]
[]
[]
[]
[]
[]
[]
[]
[]
[]
[]
[]
[null,2026,null,null,2,null,"退社","正社員",null,"現在に至る"]
[]
[null,"年",null,null,"月",null,"免許・資格等"]
[null,null,null,null,null,null,"○○○○士"]
[null,null,null,null,null,null,"○○○○免許"]
[]
[]
[]
[null,"趣味・特技など",null,null,null,null,null,null,null,null,null,null,null,"健康状態"]
[]
[]
[null,"（以下の事項について該当・非該当のどちらかを選択して下さい）"]
[]
[null,null,"事　項",null,null,null,null,null,null,null,null,null,null,null,null,null,null,null,null,null,null,"選　択"]
[null,null,"１．日本国籍を有しない者\n",null,null,null,null,null,null,null,null,null,null,null,null,null,null,null,null,null,null,"非該当"]
[]
[null,null,"２．禁固以上の刑に処せられ、その執行を終わるまでの者又はその刑の執",null,null,null,null,null,null,null,null,null,null,null,null,null,null,null,null,null,null,"非該当"]
[null,null,"　　行猶予の期間中の者その他その執行を受けることがなくなるまでの者"]
[null,null,"３．一般職の国家公務員として懲戒免職の処分を受け、当該処分の日から",null,null,null,null,null,null,null,null,null,null,null,null,null,null,null,null,null,null,"非該当"]
[null,null,"　　２年を経過しない者"]
[null,null,"４．日本国憲法又はその下に成立した政府を暴力で破壊することを主張す",null,null,null,null,null,null,null,null,null,null,null,null,null,null,null,null,null,null,"非該当"]
[null,null,"　　る政党その他の団体を結成し、又はこれに加入した者"]
[null,null,"５．平成１１年改正前の民法の規定による準禁治産の宣告を受けている者",null,null,null,null,null,null,null,null,null,null,null,null,null,null,null,null,null,null,"非該当"]
[null,null,null,"（心神耗弱を原因とするもの以外）"]
[]
[null,"履歴書記載に関する注意事項"]
[]
[null,null,"１．職歴については、アルバイト等を含み全て記載してください。"]
[null,null,null,"その際、正社員とアルバイト等の別を明記してください。"]
[null,null,null,"（例：株式会社○○商事営業部営業第一課＜正社員＞）"]
[null,null,"２．資格については、具体的に記載してください（例 ： ＴＯＥＩＣ 730点）。"]
[]
[null,"差し支えなければ、本選考採用を知ったきっかけを教えてください（複数回答可）"]
[]
[null,null,"地方整備局等HP",null,null,null,null,null,null,null,"〇",null,null,"国土交通本省採用HP"]
[null,null,"総合職採用試験時の案内",null,null,null,null,null,null,null,null,null,null,"民間転職サービス",null,null,null,null,null,null,null,"〇"]
[null,null,"国土交通省職員から",null,null,null,null,null,null,null,null,null,null,"┗","サービス名",null,null,null,null,null,null,"○○転職"]
[null,null,"その他",null,null,null,null,null,null,null,"知人からの紹介"]
[]
[]
[]
[]
[]
[]
[]
[]
[null,"差し支えなければ、本選考採用を知ったきっかけを教えてください（複数回答可）"]
[]
[null,null,"地方整備局採用HP",null,null,null,null,null,null,null,"国土交通本省採用HP",null,null,null,null,null,null,null,"民間転職サービス",null,null,null,null,"(　　　　　　　　　）"]
[]
[]
[]
[null,null,"総合職採用試験時の案内",null,null,null,null,null,null,null,"国土交通省職員からの紹介",null,null,null,null,null,null,null,"（職員名（任意）：",null,null,null,null,null,null,null,")"]
[]
[null,null,"その他",null,null,"(",null,null,null,null,null,null,null,null,null,null,null,null,null,null,null,null,null,null,null,null,")"]
[]
[]
[]
[]
[]
[]
[null,null,null,null,null,null,null,"正社員","○",null,"入社１","退社１",1,null,null,null,null,null,null,null,null,"・河川等又は道路の整備及び管理（土木）"]
[null,null,null,null,null,null,null,"契約社員","○",null,"入社２","退社２",2,null,null,null,null,null,null,null,null,"・河川等又は道路の整備及び管理（機械）"]
[null,null,null,null,null,null,null,"派遣社員","○",null,"入社３","退社３",3,null,null,null,null,null,null,null,null,"・河川等又は道路の整備及び管理（デジタル・電気・電子）"]
[null,null,null,null,null,null,null,"アルバイト","×",null,"入社４","退社４",4,null,null,null,null,null,null,null,null,"・官庁施設（政府関係施設）の整備等（建築）"]
[null,null,null,null,null,null,null,"その他","○",null,"入社５","退社５",5,null,null,null,null,null,null,null,null,"・官庁施設（政府関係施設）の整備等（電気設備）"]
[null,null,null,null,null,null,null,"無職",null,null,"入社６","退社６",6,null,null,null,null,null,null,null,null,"・官庁施設（政府関係施設）の整備等（機械設備）"]
[null,null,null,null,null,null,null,null,null,null,"入社７","退社７",7]
[null,null,null,null,null,null,null,null,null,null,"入社８","退社８",8]
[null,null,null,null,null,null,null,null,null,null,"入社９","退社９",9,null,null,null,null,null,null,null,null,"企画課","企画課"]
[null,null,null,null,null,null,null,null,null,null,"入社１０","退社１０",10,null,null,null,null,null,null,null,"-","土木（河川）","土木（道路）","機械（土木）","電気（土木）","営繕（建築）","営繕（機械）"]
[null,null,null,null,null,null,null,null,null,null,null,null,null,null,null,null,null,null,null,1963,1,{"$f":"_xlfn.SEQUENCE(31)","v":1},"元"]
[null,null,null,null,null,null,null,"氏名",null,null,null,null,null,null,null,null,null,null,null,1964,2,2,2]
[null,null,null,null,null,null,null,"ふりがな",null,null,null,null,null,null,null,null,null,null,null,1965,3,3,3]
[null,null,null,null,null,null,null,"希望する分野１",null,null,null,null,null,null,null,null,null,null,null,1966,4,4,4]
[null,null,null,null,null,null,null,"希望する分野２",null,null,null,null,null,null,null,null,null,null,null,1967,5,5,5]
[null,null,null,null,null,null,null,"対応部署",null,null,null,null,null,null,null,null,null,null,null,1968,6,6,6]
[null,null,null,null,null,null,null,"性別",null,null,null,null,null,null,null,null,null,null,null,1969,7,7,7]
[null,null,null,null,null,null,null,"電話番号",null,null,null,null,null,null,null,null,null,null,null,1970,8,8,8]
[null,null,null,null,null,null,null,"メール",null,null,null,null,null,null,null,null,null,null,null,1971,9,9,9]
[null,null,null,null,null,null,null,"勤務先",null,null,null,null,null,null,null,null,null,null,null,1972,10,10,10]
[null,null,null,null,null,null,null,"最終学歴",null,null,null,null,null,null,null,null,null,null,null,1973,11,11,11]
[null,null,null,null,null,null,null,"社会人経験年数",null,null,null,null,null,null,null,null,null,null,null,1974,12,12,12]
[null,null,null,null,null,null,null,"条件",null,null,null,null,null,null,null,null,null,null,null,1975,null,13,13]
[null,null,null,null,null,null,null,"技術系の職務経験",null,null,null,null,null,null,null,null,null,null,null,1976,null,14,14]
[null,null,null,null,null,null,null,"学校名",null,null,null,null,null,null,null,null,null,null,null,1977,null,15,15]
[null,null,null,null,null,null,null,null,null,null,null,null,null,null,null,null,null,null,null,1978,null,16,16]
[null,null,null,null,null,null,null,null,null,null,null,null,null,null,null,null,null,null,null,1979,null,17,17]
[null,null,null,null,null,null,null,null,null,null,null,null,null,null,null,null,null,null,null,1980,null,18,18]
[null,null,null,null,null,null,null,"学部",null,null,null,null,null,null,null,null,null,null,null,1981,null,19,19]
[null,null,null,null,null,null,null,null,null,null,null,null,null,null,null,null,null,null,null,1982,null,20,20]
[null,null,null,null,null,null,null,null,null,null,null,null,null,null,null,null,null,null,null,1983,null,21,21]
[null,null,null,null,null,null,null,null,null,null,null,null,null,null,null,null,null,null,null,1984,null,22,22]
[null,null,null,null,null,null,null,null,null,null,null,null,null,null,null,null,null,null,null,1985,null,23,23]
[null,null,null,null,null,null,null,null,null,null,null,null,null,null,null,null,null,null,null,1986,null,24,24]
[null,null,null,null,null,null,null,null,null,null,null,null,null,null,null,null,null,null,null,1987,null,25,25]
[null,null,null,null,null,null,null,null,null,null,null,null,null,null,null,null,null,null,null,1988,null,26,26]
[null,null,null,null,null,null,null,null,null,null,null,null,null,null,null,null,null,null,null,1989,null,27,27]
[null,null,null,null,null,null,null,null,null,null,null,null,null,null,null,null,null,null,null,1990,null,28,28]
[null,null,null,null,null,null,null,null,null,null,null,null,null,null,null,null,null,null,null,1991,null,29,29]
[null,null,null,null,null,null,null,null,null,null,null,null,null,null,null,null,null,null,null,1992,null,30,30]
[null,null,null,null,null,null,null,null,null,null,null,null,null,null,null,null,null,null,null,1993,null,31,31]
[null,null,null,null,null,null,null,null,null,null,null,null,null,null,null,null,null,null,null,1994,null,null,32]
[null,null,null,null,null,null,null,null,null,null,null,null,null,null,null,null,null,null,null,1995,null,null,33]
[null,null,null,null,null,null,null,null,null,null,null,null,null,null,null,null,null,null,null,1996,null,null,34]
[null,null,null,null,null,null,null,null,null,null,null,null,null,null,null,null,null,null,null,1997,null,null,35]
[null,null,null,null,null,null,null,null,null,null,null,null,null,null,null,null,null,null,null,1998,null,null,36]
[null,null,null,null,null,null,null,null,null,null,null,null,null,null,null,null,null,null,null,1999,null,null,37]
[null,null,null,null,null,null,null,null,null,null,null,null,null,null,null,null,null,null,null,2000,null,null,38]
[null,null,null,null,null,null,null,null,null,null,null,null,null,null,null,null,null,null,null,2000,null,null,39]
[null,null,null,null,null,null,null,null,null,null,null,null,null,null,null,null,null,null,null,2001,null,null,40]
[null,null,null,null,null,null,null,null,null,null,null,null,null,null,null,null,null,null,null,2002,null,null,41]
[null,null,null,null,null,null,null,null,null,null,null,null,null,null,null,null,null,null,null,2003,null,null,42]
[null,null,null,null,null,null,null,null,null,null,null,null,null,null,null,null,null,null,null,2004,null,null,43]
[null,null,null,null,null,null,null,null,null,null,null,null,null,null,null,null,null,null,null,2005,null,null,44]
[null,null,null,null,null,null,null,null,null,null,null,null,null,null,null,null,null,null,null,2006,null,null,45]
[null,null,null,null,null,null,null,null,null,null,null,null,null,null,null,null,null,null,null,2007,null,null,46]
[null,null,null,null,null,null,null,null,null,null,null,null,null,null,null,null,null,null,null,2008,null,null,47]
[null,null,null,null,null,null,null,null,null,null,null,null,null,null,null,null,null,null,null,2009,null,null,48]
[null,null,null,null,null,null,null,null,null,null,null,null,null,null,null,null,null,null,null,2010,null,null,49]
[null,null,null,null,null,null,null,null,null,null,null,null,null,null,null,null,null,null,null,2011,null,null,50]
[null,null,null,null,null,null,null,null,null,null,null,null,null,null,null,null,null,null,null,2012,null,null,51]
[null,null,null,null,null,null,null,null,null,null,null,null,null,null,null,null,null,null,null,2013,null,null,52]
[null,null,null,null,null,null,null,null,null,null,null,null,null,null,null,null,null,null,null,2014,null,null,53]
[null,null,null,null,null,null,null,null,null,null,null,null,null,null,null,null,null,null,null,2015,null,null,54]
[null,null,null,null,null,null,null,null,null,null,null,null,null,null,null,null,null,null,null,2016,null,null,55]
[null,null,null,null,null,null,null,null,null,null,null,null,null,null,null,null,null,null,null,2017,null,null,56]
[null,null,null,null,null,null,null,null,null,null,null,null,null,null,null,null,null,null,null,2018,null,null,57]
[null,null,null,null,null,null,null,null,null,null,null,null,null,null,null,null,null,null,null,2019,null,null,58]
[null,null,null,null,null,null,null,null,null,null,null,null,null,null,null,null,null,null,null,2020,null,null,59]
[null,null,null,null,null,null,null,null,null,null,null,null,null,null,null,null,null,null,null,2021,null,null,60]
[null,null,null,null,null,null,null,null,null,null,null,null,null,null,null,null,null,null,null,2022,null,null,61]
[null,null,null,null,null,null,null,null,null,null,null,null,null,null,null,null,null,null,null,2023,null,null,62]
[null,null,null,null,null,null,null,null,null,null,null,null,null,null,null,null,null,null,null,2024,null,null,63]
[null,null,null,null,null,null,null,null,null,null,null,null,null,null,null,null,null,null,null,2025]
[null,null,null,null,null,null,null,null,null,null,null,null,null,null,null,null,null,null,null,2026]